bitfinex/quotes_ETHUSD_20250720
["timestamp","ask_amount","ask_price","bid_price","bid_amount"]
[1753053729639,4.131,3745.2,3745.1,0.02]
[1753053730140,3.10403433,3746.0,3745.1,0.02]
[1753053730348,3.55,3745.8,3745.1,0.02]
[1753053730504,0.55,3745.3,3745.1,0.02]
[1753053730706,4.1576512,3745.2,3745.1,0.02]
[1753053731320,4.131,3745.2,3745.1,0.02]
[1753053732251,11.03117211,3745.2,3745.1,0.02]
[1753053732562,12.08977211,3745.2,3745.1,0.02]
[1753053733628,12.08977211,3745.2,3745.1,1e-08]
[1753053733956,2.67058352,3744.5,3744.4,0.001]
[1753053734115,14.45654575,3744.5,3744.4,0.001]
[1753053734312,14.86439455,3744.5,3744.4,0.001]
[1753053735256,11.32219133,3744.5,3744.4,0.001]
[1753053735558,0.55,3744.5,3744.4,0.001]
[1753053735719,4.133,3744.5,3744.4,0.001]
[1753053736055,4.133,3744.5,3744.4,0.4425]
[1753053736353,0.6241,3746.1,3744.4,0.4425]
[1753053736559,7.4556,3746.5,3745.3,2.66998104]
[1753053736721,7.4556,3746.5,3745.5,2.66987051]
[1753053736722,0.74556,3746.4,3745.5,2.66987051]
[1753053736920,0.74556,3746.4,3745.0,3.0]
[1753053736921,4.138,3746.3,3745.6,3.11124711]
[1753053737170,4.138,3746.3,3745.6,0.4415]
[1753053737552,2.69604087,3746.2,3745.1,3.1116062]
[1753053737755,2.66956521,3746.0,3745.1,0.4415]
[1753053737951,4.1646512,3745.9,3745.1,0.4415]
[1753053738676,2.67018536,3745.1,3744.3,0.001]
[1753053738970,4.1646512,3745.0,3744.3,0.001]
[1753053739174,4.138,3745.0,3744.5,0.4415]
[1753053739348,4.138,3745.0,3744.6,0.4415]
[1753053739539,4.138,3745.0,3744.7,0.4415]
[1753053739744,4.138,3745.0,3744.8,0.4415]
[1753053739948,4.139,3745.2,3744.8,0.4415]
[1753053740254,0.0266512,3745.1,3744.4,0.001]
[1753053740651,2.69680732,3745.1,3744.4,0.001]
[1753053741086,0.0266512,3745.1,3744.4,0.001]
[1753053741293,2.67027474,3745.0,3744.4,0.001]
[1753053741468,4.1656512,3744.9,3744.4,0.001]
[1753053741655,4.96011799,3744.9,3744.4,0.001]
[1753053742470,0.1328,3744.8,3744.4,0.001]
[1753053742794,0.0266512,3744.7,3744.4,0.001]
[1753053742993,0.0266512,3744.7,3744.4,0.4425]
[1753053743318,0.1328,3744.8,3744.5,0.4415]
[1753053743612,1.1741,3745.8,3744.4,0.001]
[1753053743613,4.09220322,3746.8,3744.6,0.4415]
[1753053743771,0.1328,3745.4,3744.7,0.9242]
[1753053743966,0.1328,3745.4,3744.8,0.4415]
[1753053744200,0.0266512,3745.3,3744.8,0.4415]
[1753053744406,0.1328,3745.4,3744.8,0.4415]
[1753053744572,0.1328,3745.4,3744.9,0.4415]
[1753053744775,0.1328,3745.4,3744.7,0.7914]
[1753053744776,4.138,3745.3,3744.7,0.7914]
[1753053744975,0.1328,3745.1,3744.7,1.2329]
[1753053745172,0.1328,3745.1,3744.7,0.7914]
[1753053745480,0.0266512,3745.0,3744.5,0.1328]
[1753053745791,2.67044777,3744.7,3744.4,0.001]
[1753053746122,0.1328,3744.5,3744.4,0.001]
[1753053746279,0.1594512,3744.5,3744.4,0.001]
[1753053747301,0.1328,3744.5,3744.4,0.001]
[1753053747808,0.0266512,3745.2,3744.4,0.4425]
[1753053747965,1.099,3746.2,3744.8,0.7935]
[1753053748306,0.1328,3745.5,3744.9,0.5855]
[1753053748693,0.1328,3745.5,3745.1,2.67013803]
[1753053748998,0.1328,3745.5,3745.2,0.4527]
[1753053749202,4.14,3745.8,3745.3,0.4527]
[1753053749405,4.2728,3745.8,3745.3,0.4527]
[1753053749611,0.02,3746.9,3745.5,0.8229]
[1753053749826,0.02,3746.9,3745.7,2.80252795]
[1753053749983,0.02,3746.9,3745.6,0.4527]
[1753053749984,4.142,3746.8,3745.8,2.66965058]
[1753053750175,0.1328,3746.7,3746.1,0.1328]
[1753053750704,0.4773512,3746.6,3745.5,0.8229]
[1753053750907,0.1328,3746.1,3745.5,0.8229]
[1753053751504,2.80225224,3746.1,3745.5,0.8229]
[1753053752240,0.1594512,3746.1,3745.5,0.8229]
[1753053752391,0.0266512,3746.6,3745.6,0.4527]
[1753053752592,0.1328,3746.6,3746.0,0.8067]
[1753053752845,4.2948,3746.9,3746.3,0.1328]
[1753053753006,0.1528,3746.9,3746.5,2.66910434]
[1753053753346,0.02,3746.9,3746.7,0.1328]
[1753053753628,0.02,3746.9,3746.8,0.4527]
[1753053754135,0.02,3746.9,3746.8,7.0727936]
[1753053754335,0.02,3746.9,3746.8,7.04610416]
[1753053754631,0.02,3747.9,3747.7,3.45920322]
[1753053754829,0.25031479,3747.8,3747.7,3.48588625]
[1753053755143,0.25031479,3747.8,3747.7,1.2436]
[1753053755311,0.25031479,3747.8,3747.7,3.93858625]
[1753053755506,0.25031479,3747.8,3747.7,3.91190322]
[1753053755699,0.002,3747.8,3747.7,3.93858625]
[1753053755900,0.002,3747.8,3747.7,3.91190322]
[1753053757002,0.002,3747.8,3747.7,1.2436]
[1753053757197,0.002,3747.8,3747.7,3.91190322]
[1753053757398,0.002,3747.8,3747.7,1.2436]
[1753053758700,0.002,3747.8,3747.7,3.91190322]
[1753053758937,0.002,3747.8,3747.7,1.2436]
[1753053759515,0.002,3747.8,3747.7,3.91190322]
[1753053759718,0.002,3747.8,3747.7,4.79406365]
[1753053761149,0.002,3747.8,3747.7,4.82074668]
[1753053761461,0.002,3747.8,3747.7,7.82074668]
[1753053761658,0.002,3747.8,3747.7,7.79406365]
[1753053762578,0.002,3747.8,3747.7,8.34406365]
[1753053762736,0.02,3747.9,3747.7,8.34406365]
[1753053762737,0.02,3747.9,3747.8,6.21823202]
[1753053762921,0.02,3747.9,3747.8,13.57151895]
[1753053763125,0.02,3747.9,3747.8,14.03516595]
[1753053763481,0.02,3747.9,3747.8,11.06763202]
[1753053763941,0.02,3747.9,3747.8,21.32909802]
[1753053764265,0.02,3748.9,3748.8,3.49302027]
[1753053764560,0.02,3748.9,3748.8,6.62582027]
[1753053764856,0.02,3748.9,3748.8,7.07852027]
[1753053765056,0.02,3748.9,3748.8,8.47992904]
[1753053765422,0.02,3748.9,3748.8,11.82931004]
[1753053765620,0.02,3749.9,3749.8,3.45280889]
[1753053765854,0.02,3749.9,3749.0,0.786]
[1753053766039,0.02,3749.9,3749.6,0.1328]
[1753053767374,0.02,3749.9,3749.7,0.4527]
[1753053767588,0.02,3749.9,3749.8,0.1328]
[1753053767773,0.02,3749.9,3749.8,4.08510889]
[1753053768410,0.02,3749.9,3749.8,1.4183]
[1753053768594,0.02,3749.9,3749.8,4.11177697]
[1753053768929,0.02,3749.9,3749.8,1.4183]
[1753053769107,0.02,3749.9,3749.8,7.08510889]
[1753053769706,0.02,3749.9,3749.8,4.4183]
[1753053769893,0.02,3749.9,3749.8,7.08510889]
[1753053770683,0.02,3749.9,3749.8,8.4740143]
[1753053771722,0.02,3749.9,3749.8,12.6070143]
[1753053772393,0.02,3749.9,3749.8,13.1570143]
[1753053772791,0.02,3749.9,3749.8,8.4740143]
[1753053772997,0.02,3749.9,3749.8,12.6060143]
[1753053774146,0.02,3749.9,3749.8,13.1560143]
[1753053775292,0.02,3749.9,3749.8,9.0240143]
[1753053775493,0.02,3749.9,3749.8,13.1560143]
[1753053776105,0.02,3749.9,3749.8,8.4740143]
[1753053776329,0.02,3749.9,3749.8,12.6050143]
[1753053777701,0.02,3749.9,3749.8,4.2628]
[1753053778499,0.02,3749.9,3749.8,0.1328]
[1753053780136,0.02,3749.9,3749.8,0.5751]
[1753053780555,0.02,3749.9,3749.8,0.1328]
[1753053780755,0.02,3749.9,3749.8,2.79960889]
[1753053781457,0.02,3749.9,3749.8,0.1328]
[1753053781612,0.4621,3749.9,3749.0,3.8325]
[1753053781817,1.261,3749.9,3749.2,0.1328]
[1753053782742,2.66688001,3749.7,3748.5,0.7681]
[1753053783043,1.08153225,3749.9,3748.2,2.66792658]
[1753053783044,3.46608476,3749.3,3748.6,0.1328]
[1753053783337,0.4421,3749.2,3748.6,0.1328]
[1753053783638,0.6661,3749.7,3748.6,5.66766259]
[1753053783837,0.1328,3749.6,3749.0,0.1328]
[1753053784040,0.1594512,3749.6,3749.0,0.1328]
[1753053784212,0.4421,3749.5,3749.0,0.1328]
[1753053784425,0.1328,3749.3,3748.7,4.2638]
[1753053784603,0.1328,3749.3,3748.8,2.66748054]
[1753053784955,0.1328,3749.3,3748.7,0.1328]
[1753053787266,0.45965173,3749.3,3748.7,0.1328]
[1753053787463,0.1328,3749.3,3748.7,0.1328]
[1753053788966,0.6661,3749.1,3748.6,0.001]
[1753053789171,0.1328,3748.8,3748.6,0.001]
[1753053789547,0.4421,3748.7,3748.6,0.001]
[1753053790432,1.1082,3748.7,3748.6,0.001]
[1753053790634,11.44464585,3748.7,3748.6,0.001]
[1753053790947,11.41799465,3748.7,3748.6,0.001]
[1753053791148,2.66831786,3747.7,3747.1,0.02]
[1753053791485,0.6927512,3747.6,3747.1,0.02]
[1753053791633,1.1082,3747.6,3747.1,0.02]
[1753053791832,0.6661,3747.6,3747.1,0.02]
[1753053792788,0.55,3747.4,3747.1,0.02]
[1753053792946,3.91133925,3747.3,3747.1,0.02]
[1753053793149,1.2161,3746.9,3746.1,0.02]
[1753053793349,3.0,3747.2,3746.1,0.02]
[1753053793350,2.66937162,3746.2,3746.1,0.02]
[1753053793659,3.33547162,3746.2,3746.1,0.02]
[1753053793866,4.404697,3746.2,3746.1,0.02]
[1753053794409,1.70867418,3746.2,3746.1,0.02]
[1753053794550,0.6661,3746.2,3746.1,0.02]
[1753053794753,4.8061,3746.6,3746.1,0.02]
[1753053795169,0.6661,3746.6,3746.1,0.02]
[1753053795373,0.4421,3746.5,3746.1,0.02]
[1753053796185,4.8061,3746.6,3746.1,0.02]
[1753053796186,0.6661,3746.6,3746.1,0.02]
[1753053796388,0.4421,3747.2,3746.1,0.02]
[1753053796573,4.1656512,3747.1,3746.2,2.66931149]
[1753053797090,4.1656512,3747.1,3746.1,2.68943877]
[1753053797294,4.1656512,3747.1,3746.2,2.66935628]
[1753053797702,0.0266512,3747.1,3746.1,0.02]
[1753053797874,4.14,3747.1,3746.4,2.66922456]
[1753053798073,0.45821,3747.0,3746.1,0.02]
[1753053798269,0.45821,3747.0,3746.1,2.68939253]
[1753053798658,0.45821,3747.0,3746.2,2.66933432]
[1753053798858,0.45821,3747.0,3746.3,2.6692868]
[1753053799075,4.139,3747.1,3746.3,2.6692868]
[1753053799294,0.4421,3747.2,3746.2,0.4423]
[1753053799492,0.6661,3747.5,3746.4,0.8074]
[1753053799793,4.8051,3747.5,3746.5,3.11145788]
[1753053799992,4.8051,3747.5,3746.8,2.66893536]
[1753053800194,0.52472,3747.4,3746.8,2.66893536]
[1753053800559,0.65752,3747.4,3746.9,2.66886325]
[1753053800756,0.1328,3747.4,3746.8,2.80174087]
[1753053800959,0.0266512,3747.3,3745.9,0.8093]
[1753053801197,0.1328,3746.8,3746.2,2.66937162]
[1753053801959,0.0266512,3746.7,3746.1,0.1528]
[1753053802193,0.1328,3746.4,3746.1,0.02]
[1753053802393,0.4421,3746.3,3746.1,0.02]
[1753053802596,0.1328,3746.4,3746.1,0.02]
[1753053802597,0.5749,3746.4,3746.1,0.02]
[1753053802796,0.1328,3746.4,3746.1,0.02]
[1753053803006,0.4421,3746.3,3746.1,0.02]
[1753053803160,0.0266512,3746.2,3746.1,0.02]
[1753053803360,0.4421,3746.2,3746.1,0.02]
[1753053804677,3.42527126,3746.2,3746.1,0.02]
[1753053804888,3.11147162,3746.2,3746.1,0.02]
[1753053805795,4.32757162,3746.2,3746.1,0.02]
[1753053805994,11.44642604,3746.2,3746.1,0.02]
[1753053806318,11.41977484,3746.2,3746.1,0.02]
[1753053806992,3.33604179,3745.4,3745.3,0.001]
[1753053807422,1.1348512,3745.4,3745.3,0.001]
[1753053809307,3.80479299,3745.4,3745.3,0.001]
[1753053810099,1.1348512,3745.4,3745.3,0.001]
[1753053810317,1.66263632,3745.4,3745.3,0.001]
[1753053811500,0.6661,3745.9,3745.3,0.001]
[1753053811827,0.1328,3745.6,3745.3,3.10999429]
[1753053812035,0.1328,3745.6,3745.4,2.66993375]
[1753053812236,0.1328,3745.6,3745.4,0.439]
[1753053812632,0.1328,3745.6,3745.3,0.001]
[1753053814653,0.1328,3745.6,3745.3,2.67096833]
[1753053814933,0.1328,3745.6,3745.3,0.001]
[1753053818728,0.1328,3745.6,3745.3,2.67100421]
[1753053818930,0.1328,3745.6,3745.3,2.67099391]
[1753053819102,0.1328,3745.6,3745.3,0.001]
[1753053821354,0.1328,3745.6,3745.3,2.67094686]
[1753053821520,0.1328,3745.6,3745.3,0.001]
[1753053825852,0.0266512,3745.5,3745.3,0.001]
[1753053826065,0.1328,3745.7,3745.4,0.439]
[1753053826353,7.77,3746.6,3745.6,3.7869]
[1753053826562,0.1328,3746.5,3745.8,2.66965668]
[1753053826727,0.6661,3747.6,3746.3,3.0]
[1753053826931,0.1328,3747.3,3746.7,0.1328]
[1753053827251,0.1328,3747.3,3746.8,2.66893515]
[1753053827477,0.1328,3747.3,3746.9,3.10786632]
[1753053827841,0.1328,3747.3,3747.0,0.439]
[1753053828088,0.1328,3747.3,3746.9,2.66886632]
[1753053828244,0.1328,3747.3,3747.1,0.439]
[1753053828778,0.1328,3747.3,3746.7,0.1328]
[1753053828954,0.1328,3746.7,3746.1,0.1328]
[1753053829352,0.4536,3746.8,3745.9,0.1328]
[1753053829353,0.1328,3746.5,3745.9,0.1328]
[1753053829546,0.1328,3746.5,3745.9,2.8023365]
[1753053830543,0.6927512,3746.4,3745.4,0.8119]
[1753053830855,0.1328,3746.0,3745.5,2.66987051]
[1753053831194,0.1328,3746.0,3745.6,0.439]
[1753053831574,0.1328,3746.0,3745.8,2.66961766]
[1753053831751,0.1328,3746.3,3745.9,0.439]
[1753053831940,0.1328,3746.3,3745.7,0.1328]
[1753053832777,0.0266512,3746.2,3745.4,0.8119]
[1753053832968,0.1328,3746.0,3745.4,0.1328]
[1753053833278,0.0266512,3745.9,3745.4,0.1328]
[1753053833473,0.1328,3746.0,3745.4,0.1328]
[1753053833639,0.1328,3746.0,3745.5,2.66985395]
[1753053833836,4.134,3746.6,3745.6,3.10877571]
[1753053834045,0.1328,3746.3,3745.7,0.1328]
[1753053834555,0.1328,3746.3,3745.7,2.80250953]
[1753053835298,0.0266512,3746.2,3745.7,0.1328]
[1753053837082,2.66964693,3745.9,3745.3,0.001]
[1753053837282,0.1328,3745.7,3745.3,0.001]
[1753053837448,0.1328,3745.4,3745.3,0.001]
[1753053838268,2.82939299,3745.4,3745.3,0.001]
[1753053838458,0.1594512,3745.4,3745.3,0.001]
[1753053838658,0.1328,3745.4,3745.3,0.001]
[1753053839154,2.80274179,3745.4,3745.3,0.001]
[1753053839357,0.1328,3745.4,3745.3,0.001]
[1753053840696,0.1328,3746.2,3745.5,2.66987051]
[1753053840907,0.6661,3747.0,3746.1,2.66944288]
[1753053841055,0.6661,3747.6,3746.4,0.7691]
[1753053841254,0.1328,3747.1,3746.6,0.1328]
[1753053841455,0.002,3746.9,3746.7,0.4435]
[1753053841882,0.0286512,3746.9,3746.4,0.7691]
[1753053842056,0.1348,3746.9,3746.4,0.7691]
[1753053842267,0.1348,3746.9,3746.5,0.4435]
[1753053842508,0.002,3746.9,3746.6,0.1328]
[1753053842834,0.002,3746.9,3746.7,0.4435]
[1753053843336,0.002,3746.9,3746.8,0.4435]
[1753053843892,0.002,3746.9,3746.6,0.1328]
[1753053844097,0.002,3746.9,3746.7,0.4435]
[1753053844343,0.002,3746.9,3746.8,3.63264416]
[1753053844544,0.002,3746.9,3746.8,1.4072]
[1753053845114,0.002,3746.9,3746.8,4.07614416]
[1753053845310,0.002,3746.9,3746.8,0.1328]
[1753053845715,0.002,3746.9,3746.6,0.1328]
[1753053847116,0.0286512,3746.9,3746.6,0.1328]
[1753053848143,0.002,3746.9,3746.6,0.1328]
[1753053849108,0.0286512,3746.9,3746.6,0.1328]
[1753053849840,2.66908809,3746.6,3745.8,4.9605]
[1753053850055,0.0266512,3746.5,3746.2,0.1328]
[1753053850602,0.0266512,3746.6,3746.2,0.1328]
[1753053851103,0.0266512,3746.6,3745.8,0.8265]
[1753053851104,0.4289,3746.5,3745.8,0.8265]
[1753053851397,0.1328,3746.4,3745.8,0.8265]
[1753053851596,0.1328,3746.4,3745.9,0.4435]
[1753053851855,0.002,3746.9,3746.3,0.1328]
[1753053852012,0.002,3746.9,3746.6,0.1328]
[1753053852219,0.002,3746.9,3746.6,2.80187671]
[1753053852570,0.002,3746.9,3746.7,0.4435]
[1753053853052,0.002,3746.9,3746.1,3.828]
[1753053853352,0.1614512,3746.9,3746.3,0.1328]
[1753053854648,0.1348,3746.9,3746.4,2.66922815]
[1753053855150,0.1348,3746.9,3746.5,0.4435]
[1753053855454,0.002,3746.9,3746.7,0.1328]
[1753053855745,0.002,3746.9,3746.8,0.4435]
[1753053856253,0.002,3746.9,3746.8,3.9016336]
[1753053856419,0.002,3746.9,3746.8,4.66481449]
[1753053856947,0.002,3746.9,3746.8,7.66481449]
[1753053857984,0.002,3746.9,3746.8,11.79881449]
[1753053858169,0.002,3746.9,3746.8,11.79781449]
[1753053858758,0.002,3746.9,3746.8,7.66481449]
[1753053858965,0.002,3746.9,3746.8,7.00774416]
[1753053859273,0.002,3746.9,3746.8,11.14074416]
[1753053860682,0.002,3746.9,3746.8,7.00774416]
[1753053860981,0.002,3746.9,3746.8,8.4718]
[1753053861142,0.002,3746.9,3746.8,4.3388]
[1753053861344,0.002,3746.9,3746.8,0.1328]
[1753053861770,0.002,3746.9,3746.8,3.24524416]
[1753053861968,0.002,3746.9,3746.8,0.1328]
[1753053863453,0.002,3746.9,3746.8,3.24524416]
[1753053864088,0.002,3747.7,3747.6,2.66837442]
[1753053864389,0.002,3747.7,3747.6,7.76225816]
[1753053864576,0.002,3747.7,3747.6,8.17907442]
[1753053867186,0.002,3747.7,3747.6,11.17907442]
[1753053867994,1e-08,3747.7,3747.6,38.9873596]
[1753053868205,1e-08,3747.9,3747.8,6.21823202]
[1753053868410,1e-08,3747.9,3747.8,7.03203202]
[1753053868696,1e-08,3747.9,3747.8,7.59433202]
[1753053869332,1e-08,3747.9,3747.8,23.59326802]
[1753053869538,1e-08,3747.9,3747.8,14.35386595]
[1753053869842,1e-08,3747.9,3747.8,21.19766595]
[1753053870308,1e-08,3747.9,3747.8,14.35386595]
[1753053871636,1e-08,3747.9,3747.8,9.67186595]
[1753053871935,1e-08,3747.9,3747.8,10.74683202]
[1753053872307,1e-08,3747.9,3747.8,11.17633202]
[1753053874738,1e-08,3747.9,3747.8,7.2648]
[1753053874942,1e-08,3747.9,3747.8,9.93303202]
[1753053875767,1e-08,3747.9,3747.8,5.80103202]
[1753053875974,0.46260001,3747.9,3747.4,4.132]
[1753053876361,1e-08,3747.9,3747.4,4.132]
[1753053876650,0.4626,3747.8,3747.4,4.132]
[1753053876849,1e-08,3747.9,3747.4,4.132]
[1753053877052,1e-08,3747.9,3747.5,0.45618445]
[1753053877369,1e-08,3747.9,3747.6,6.80035105]
[1753053877569,1e-08,3747.9,3747.7,2.66829833]
[1753053877872,1e-08,3747.9,3747.8,2.66823202]
[1753053878044,1e-08,3747.9,3747.8,4.132]
[1753053878248,1e-08,3747.9,3747.8,6.80023202]
[1753053878768,1e-08,3747.9,3747.8,4.132]
[1753053879330,1e-08,3747.9,3747.8,6.80023202]
[1753053879736,1e-08,3747.9,3747.8,9.00389151]
[1753053880473,1e-08,3747.9,3747.8,12.00389151]
[1753053884388,1e-08,3747.9,3747.8,36.39504051]
[1753053884690,1e-08,3747.9,3747.8,31.21971651]
[1753053884896,1e-08,3747.9,3747.8,7.87189151]
[1753053885067,1e-08,3747.9,3747.8,14.85589151]
[1753053885467,1e-08,3747.9,3747.8,12.00289151]
[1753053885882,1e-08,3747.9,3747.8,12.13569151]
[1753053886487,1e-08,3747.9,3747.8,14.98130151]
[1753053886794,1e-08,3747.9,3747.8,12.68569151]
[1753053887493,1e-08,3747.9,3747.8,42.68569151]
[1753053887856,1e-08,3747.9,3747.8,39.35182851]
[1753053888688,1e-08,3747.9,3747.8,35.86325251]
[1753053889003,1e-08,3748.7,3748.6,2.66766259]
[1753053889299,1e-08,3748.7,3748.6,19.18102773]
[1753053889494,1e-08,3748.7,3748.6,19.93758411]
[1753053889700,1e-08,3748.7,3748.6,8.42669111]
[1753053890067,1e-08,3748.7,3748.6,11.57819111]
[1753053890501,1e-08,3748.7,3748.6,9.93146259]
[1753053891007,1e-08,3748.7,3748.6,7.2638]
[1753053891203,1e-08,3748.7,3748.6,4.2638]
[1753053893001,1e-08,3748.7,3748.6,0.1328]
[1753053893206,0.46260001,3748.7,3748.6,4.2628]
[1753053894175,1e-08,3748.7,3748.6,4.2628]
[1753053895408,1e-08,3748.7,3747.8,4.74345949]
[1753053895409,1.12870001,3748.7,3748.4,4.2628]
[1753053895973,1e-08,3748.7,3748.5,2.66773376]
[1753053896202,1e-08,3748.7,3748.6,6.93046259]
[1753053896696,1e-08,3748.7,3748.6,9.93046259]
[1753053896894,1e-08,3748.7,3748.6,10.35996259]
[1753053897106,1e-08,3748.7,3748.6,11.67526259]
[1753053897471,1e-08,3748.7,3748.6,19.88726259]
[1753053897671,1e-08,3748.7,3748.6,21.04692706]
[1753053898273,1e-08,3748.7,3748.6,14.03368206]
[1753053898927,1e-08,3748.7,3748.6,40.58204906]
[1753053899080,1e-08,3748.9,3748.8,1.3561]
[1753053899273,1e-08,3748.9,3748.8,17.5394524]
[1753053899528,1e-08,3748.9,3748.8,18.0928772]
[1753053900146,1e-08,3749.4,3749.3,4.02326453]
[1753053900355,1e-08,3749.9,3749.8,3.21680889]
[1753053900481,1e-08,3750.7,3750.2,7.02262445]
[1753053900679,1e-08,3750.7,3750.6,7.17994006]
[1753053900911,1e-08,3750.7,3750.6,24.94259406]
[1753053901111,1e-08,3750.7,3750.6,17.88642899]
[1753053901315,1e-08,3750.7,3750.6,14.38477399]
[1753053902011,1e-08,3750.7,3750.6,44.38477399]
[1753053902210,1e-08,3750.7,3750.6,17.11915277]
[1753053902534,1e-08,3750.7,3750.6,14.51930977]
[1753053902709,1e-08,3750.7,3750.6,14.72308273]
[1753053903892,1e-08,3750.7,3750.6,26.66932073]
[1753053904489,1e-08,3750.7,3750.6,44.72308273]
[1753053904683,1e-08,3750.7,3750.6,42.48862073]
[1753053904998,1e-08,3750.7,3750.6,35.64501573]
[1753053905317,1e-08,3750.7,3750.6,35.03780073]
[1753053905517,1e-08,3750.7,3750.6,14.72308273]
[1753053905927,1e-08,3750.7,3750.6,17.31008273]
[1753053906520,1e-08,3750.7,3750.6,14.72308273]
[1753053906930,1e-08,3750.7,3750.6,6.9682488]
[1753053907084,1e-08,3750.7,3750.6,11.0962488]
[1753053912032,1e-08,3750.7,3750.6,10.96171302]
[1753053913824,1e-08,3750.7,3750.6,3.33657296]
[1753053914012,1e-08,3750.7,3750.6,7.49023536]
[1753053914217,1e-08,3750.7,3750.6,10.12981302]
[1753053915109,1e-08,3750.7,3750.6,7.46357296]
[1753053915431,1e-08,3750.7,3750.6,3.33657296]
[1753053915732,1e-08,3750.7,3750.6,7.46357296]
[1753053915896,1e-08,3750.7,3750.6,10.12981302]
[1753053916417,1e-08,3750.7,3750.6,12.76276142]
[1753053917245,1e-08,3750.7,3750.6,14.12446142]
[1753053917526,1e-08,3750.7,3750.6,9.99746142]
[1753053917760,1e-08,3750.7,3750.6,14.12446142]
[1753053919251,1e-08,3750.9,3750.8,3.21609789]
[1753053919450,1e-08,3750.9,3750.8,42.22865179]
[1753053919615,1e-08,3750.9,3750.8,35.81370382]
[1753053919816,1e-08,3750.9,3750.8,35.20243282]
[1753053920322,1e-08,3750.9,3750.8,13.92713182]
[1753053920509,1e-08,3750.9,3750.8,0.1328]
[1753053920713,0.6661,3750.8,3750.6,0.001]
[1753053920954,0.4558,3750.7,3750.6,0.001]
[1753053921158,1.1219,3750.7,3750.6,0.001]
[1753053924318,3.78806898,3750.7,3750.6,0.001]
[1753053924657,1.76998022,3750.7,3750.6,0.001]
[1753053924957,4.4361492,3750.7,3750.6,0.001]
[1753053925733,9.91025703,3750.7,3750.6,0.001]
[1753053926348,10.46025703,3750.7,3750.6,0.001]
[1753053927142,13.46025703,3750.7,3750.6,0.001]
[1753053928848,0.6661,3749.6,3749.0,0.001]
[1753053929248,0.4968512,3749.5,3749.0,0.001]
[1753053929454,0.6661,3749.4,3749.0,0.001]
[1753053929656,3.33339153,3749.2,3749.0,0.001]
[1753053929839,3.36005802,3749.1,3749.0,0.001]
[1753053930037,3.83025802,3749.1,3749.0,0.001]
[1753053930230,4.32157446,3749.1,3749.0,0.001]
[1753053930944,1.65426764,3749.1,3749.0,0.001]
[1753053931260,4.32157446,3749.1,3749.0,0.001]
[1753053931663,0.55,3748.8,3748.1,0.02]
[1753053931861,0.55,3749.0,3748.1,0.02]
[1753053931862,3.33404728,3748.2,3748.1,0.02]
[1753053932065,6.9821275,3748.2,3748.1,0.02]
[1753053932267,8.0023275,3748.2,3748.1,0.02]
[1753053932776,5.91238022,3748.2,3748.1,0.02]
[1753053932975,8.5803275,3748.2,3748.1,0.02]
[1753053933381,1.78438022,3748.2,3748.1,0.02]
[1753053933553,5.2643,3748.2,3748.1,0.02]
[1753053933879,7.93224728,3748.2,3748.1,0.02]
[1753053934186,8.48224728,3748.2,3748.1,0.02]
[1753053935076,5.2653,3748.2,3748.1,0.02]
[1753053935279,1.1363,3748.2,3748.1,0.02]
[1753053935484,5.2653,3748.2,3748.1,0.02]
[1753053936777,1.66283,3748.2,3748.1,0.02]
[1753053936985,1.1363,3748.2,3748.1,0.02]
[1753053937488,0.6661,3749.0,3748.1,0.02]
[1753053937684,4.133,3748.9,3748.2,0.4683]
[1753053937982,4.133,3748.9,3748.2,2.66794344]
[1753053938160,4.133,3748.9,3748.3,2.66787074]
[1753053938352,4.133,3748.9,3748.4,2.66779295]
[1753053938543,0.6661,3749.0,3748.1,0.02]
[1753053938749,4.134,3748.9,3748.1,0.80671393]
[1753053938984,4.134,3748.8,3748.5,2.66768145]
[1753053939493,4.134,3748.8,3748.1,0.83339411]
[1753053939654,4.134,3748.8,3748.6,2.6676063]
[1753053939851,0.6661,3749.0,3748.6,2.6676063]
[1753053940078,4.135,3748.9,3748.6,2.66759401]
[1753053940284,0.6661,3749.4,3748.9,2.66740114]
[1753053940485,4.6042,3749.3,3748.4,0.02667804]
[1753053940688,4.6042,3749.3,3748.7,2.66756806]
[1753053941499,4.134,3749.2,3748.6,2.66763785]
[1753053941702,4.134,3749.2,3748.6,2.80043785]
[1753053941996,4.134,3749.2,3748.7,2.66758233]
[1753053942359,4.6042,3749.2,3748.7,2.66758233]
[1753053942568,0.1328,3749.3,3748.6,0.1328]
[1753053942801,5.47410783,3749.8,3748.6,0.1328]
[1753053942803,4.132,3749.2,3749.1,0.1328]
[1753053942991,4.132,3749.2,3749.1,2.80010682]
[1753053943293,0.1328,3749.7,3749.1,2.80010682]
[1753053943488,4.132,3749.6,3749.1,2.80010371]
[1753053943694,4.132,3749.6,3749.1,2.80010675]
[1753053943895,0.4702,3749.5,3749.1,2.80010675]
[1753053944292,0.1328,3749.7,3749.1,0.1328]
[1753053944498,0.6661,3750.2,3749.0,2.66733336]
[1753053944707,4.6268512,3750.1,3749.6,0.1328]
[1753053944998,0.4702,3750.0,3749.4,0.1328]
[1753053945191,0.54257512,3750.0,3749.4,0.1328]
[1753053945437,0.54257512,3750.0,3749.4,2.79987885]
[1753053945633,4.131,3749.9,3749.4,0.1328]
[1753053945927,4.13,3749.8,3749.4,2.79986852]
[1753053946297,4.13,3749.8,3749.4,0.1328]
[1753053946695,4.13,3749.8,3749.4,2.79988331]